bitfinex/quotes_BTCUSD_20241022
["timestamp","ask_amount","ask_price","bid_price","bid_amount"]
[1729594701185,0.33687525,67242.0,67241.0,0.05328698]
[1729594701402,0.33687525,67242.0,67241.0,0.04223652]
[1729594701620,0.33687525,67242.0,67241.0,0.05328698]
[1729594701823,0.33687525,67242.0,67241.0,0.04223652]
[1729594702069,0.33687525,67242.0,67241.0,0.05328698]
[1729594702303,0.33587525,67242.0,67241.0,0.13418698]
[1729594702532,0.248716,67242.0,67241.0,0.38425962]
[1729594704175,0.248716,67242.0,67241.0,0.37486116]
[1729594704371,0.248716,67242.0,67241.0,0.38592379]
[1729594707971,0.248716,67242.0,67241.0,0.30502379]
[1729594708622,0.249716,67242.0,67241.0,0.30502379]
[1729594708849,0.249716,67242.0,67241.0,0.21302379]
[1729594709061,0.248716,67242.0,67241.0,0.21302379]
[1729594709272,0.249716,67242.0,67241.0,0.21302379]
[1729594712418,0.249716,67242.0,67241.0,0.0546047]
[1729594712632,0.29430406,67242.0,67241.0,0.06406464]
[1729594712851,0.29430406,67242.0,67241.0,0.05495115]
[1729594713304,0.30102417,67242.0,67241.0,0.05495115]
[1729594713951,0.248716,67242.0,67241.0,0.05495115]
[1729594714162,0.249716,67242.0,67241.0,0.05495115]
[1729594715497,0.249716,67242.0,67241.0,0.04388852]
[1729594715714,0.249716,67242.0,67241.0,0.05495256]
[1729594719054,0.249716,67242.0,67241.0,0.05494097]
[1729594720801,0.249716,67242.0,67241.0,0.04548103]
[1729594721025,0.249716,67242.0,67241.0,0.05494097]
[1729594721248,0.29430406,67242.0,67241.0,0.05494097]
[1729594721497,0.29430406,67242.0,67241.0,0.05016439]
[1729594721716,0.29430406,67242.0,67241.0,0.05494097]
[1729594722817,0.29430406,67242.0,67241.0,0.04388852]
[1729594723944,0.29433867,67242.0,67241.0,0.04388852]
[1729594727253,0.249716,67242.0,67241.0,0.04388852]
[1729594734187,0.33687525,67242.0,67241.0,0.029652]
[1729594734457,0.50374262,67242.0,67241.0,0.029652]
[1729594734686,0.50163698,67242.0,67241.0,0.029652]
[1729594735164,0.50163698,67242.0,67241.0,0.001652]
[1729594735392,0.50163698,67242.0,67237.0,0.00165]
[1729594735393,0.249725,67238.0,67237.0,0.00165]
[1729594735635,0.67160523,67238.0,67237.0,0.00165]
[1729594737935,0.67660523,67238.0,67237.0,0.00165]
[1729594738116,0.67860523,67238.0,67237.0,0.00165]
[1729594738379,0.67360523,67238.0,67237.0,0.00165]
[1729594738591,0.67760523,67238.0,67237.0,0.00265]
[1729594739038,0.68060523,67238.0,67237.0,0.00265]
[1729594742435,0.5158435,67238.0,67237.0,0.00265]
[1729594742645,0.68031043,67238.0,67237.0,0.00265]
[1729594744626,0.79165858,67238.0,67237.0,0.00265]
[1729594746374,0.68031043,67238.0,67237.0,0.00265]
[1729594746580,0.79163678,67238.0,67237.0,0.00265]
[1729594746788,0.68031043,67238.0,67237.0,0.00265]
[1729594747290,0.97161955,67238.0,67237.0,1e-06]
[1729594747497,0.97161955,67238.0,67219.0,0.006652]
[1729594747498,0.14976,67222.0,67219.0,0.006652]
[1729594747713,0.23691925,67222.0,67219.0,0.01142858]
[1729594747939,0.23691925,67222.0,67219.0,0.01588852]
[1729594748177,0.149765,67220.0,67219.0,0.01111194]
[1729594748358,0.149765,67220.0,67219.0,0.006652]
[1729594748611,0.149765,67220.0,67219.0,0.01142858]
[1729594748832,0.149765,67220.0,67219.0,0.006652]
[1729594749281,0.150765,67220.0,67219.0,0.018652]
[1729594749500,0.151765,67220.0,67219.0,0.032652]
[1729594749775,0.151765,67220.0,67219.0,0.03742858]
[1729594749993,0.151765,67220.0,67219.0,0.04188852]
[1729594754652,0.23892425,67220.0,67219.0,0.04188852]
[1729594755774,0.24589439,67220.0,67219.0,0.04188852]
[1729594756660,0.24589439,67220.0,67219.0,0.03242858]
[1729594756868,0.24589439,67220.0,67219.0,0.04188852]
[1729594757075,0.24530818,67220.0,67219.0,0.04188852]
[1729594757557,0.24530818,67220.0,67219.0,0.03242858]
[1729594757756,0.24530818,67220.0,67219.0,0.027652]
[1729594757963,0.24530818,67220.0,67219.0,0.02661466]
[1729594762769,0.33246743,67220.0,67219.0,0.02661466]
[1729594762997,0.14920279,67209.0,67208.0,0.09]
[1729594763233,0.23636204,67209.0,67208.0,0.09]
[1729594763463,0.23636204,67209.0,67208.0,0.10126067]
[1729594763737,0.23636204,67209.0,67208.0,0.09]
[1729594764430,0.23636204,67209.0,67207.0,0.001652]
[1729594764431,0.14920479,67208.0,67207.0,0.001652]
[1729594764926,0.23637304,67204.0,67203.0,0.00460998]
[1729594765602,0.23637304,67204.0,67203.0,0.01406992]
[1729594766713,0.1488,67204.0,67203.0,0.18526992]
[1729594766937,0.23637304,67204.0,67203.0,0.18526992]
[1729594767167,0.23737304,67204.0,67203.0,0.19226992]
[1729594767624,0.23837304,67204.0,67203.0,0.19626992]
[1729594769857,0.1508,67204.0,67203.0,0.34522907]
[1729594770100,0.002,67204.0,67203.0,0.35022907]
[1729594770531,0.002,67204.0,67203.0,0.36184227]
[1729594770966,0.001,67204.0,67203.0,0.35484227]
[1729594771398,0.002,67204.0,67203.0,0.35484227]
[1729594771623,0.001,67204.0,67203.0,0.35084227]
[1729594771845,0.446383,67207.0,67206.0,0.18170998]
[1729594772082,0.446383,67207.0,67206.0,0.33066913]
[1729594772299,0.446383,67207.0,67206.0,0.35173089]
[1729594772549,0.446383,67207.0,67206.0,0.34982288]
[1729594774110,0.447383,67207.0,67206.0,0.35982288]
[1729594774350,0.446383,67207.0,67206.0,0.36082288]
[1729594774808,0.447383,67207.0,67206.0,0.37082288]
[1729594775029,0.446383,67207.0,67206.0,0.36082288]
[1729594775272,0.446383,67207.0,67206.0,0.37082288]
[1729594775503,0.447383,67207.0,67206.0,0.37082288]
[1729594776176,0.149795,67207.0,67206.0,0.37082288]
[1729594778446,0.001,67207.0,67206.0,0.46298213]
[1729594778668,0.001,67207.0,67206.0,0.46289609]
[1729594779386,0.001,67207.0,67206.0,0.37573684]
[1729594780047,0.001,67207.0,67206.0,0.36473684]
[1729594780291,0.148792,67208.0,67207.0,0.10990143]
[1729594780510,0.148792,67208.0,67207.0,0.25886058]
[1729594780741,0.148792,67208.0,67207.0,0.27046219]
[1729594781516,0.150792,67208.0,67207.0,0.29646219]
[1729594781737,0.150792,67208.0,67207.0,0.34539915]
[1729594783375,0.150792,67208.0,67207.0,0.29646219]
[1729594783994,0.1508442,67208.0,67207.0,0.29646219]
[1729594785821,0.1516702,67208.0,67207.0,0.29460389]
[1729594786967,0.14772131,67208.0,67207.0,0.29460389]
[1729594793223,0.14772131,67208.0,67207.0,0.2941332]
[1729594800311,0.14772131,67208.0,67207.0,0.2931832]
[1729594800540,0.0028782,67208.0,67207.0,0.29295649]
[1729594800792,0.0028782,67208.0,67207.0,0.37675649]
[1729594801021,0.1516692,67208.0,67207.0,0.37675649]
[1729594801504,0.1516692,67208.0,67207.0,0.37575649]
[1729594803106,0.0028782,67208.0,67207.0,0.37575649]
[1729594803324,0.0028782,67208.0,67207.0,0.48372255]
[1729594803542,0.0028782,67208.0,67207.0,0.63251655]
[1729594803799,0.0028782,67208.0,67207.0,0.5937757]
[1729594804028,0.0028782,67208.0,67207.0,0.4449817]
[1729594804972,0.0028782,67208.0,67207.0,0.69093495]
[1729594805212,0.0755809,67209.0,67208.0,0.37658673]
[1729594805452,0.0755809,67209.0,67208.0,0.65498208]
[1729594805704,0.0755809,67209.0,67208.0,0.70120729]
[1729594806394,0.0755809,67209.0,67208.0,0.83731976]
[1729594807711,0.0755809,67209.0,67208.0,0.86531976]
[1729594808389,0.0755809,67209.0,67208.0,0.86631976]
[1729594809614,0.0755809,67209.0,67208.0,0.86609632]
[1729594813498,0.0755809,67209.0,67208.0,0.72898385]
[1729594813741,0.0755809,67209.0,67208.0,0.34465665]
[1729594813978,0.2243699,67209.0,67208.0,0.34457801]
[1729594814214,0.2243699,67209.0,67208.0,0.2983528]
[1729594814215,0.0755809,67209.0,67208.0,0.2983528]
[1729594814656,0.2243699,67209.0,67208.0,0.2983528]
[1729594814885,0.04728448,67209.0,67208.0,0.2983528]
[1729594815151,0.19607348,67209.0,67208.0,0.36460602]
[1729594815363,0.19607348,67209.0,67208.0,0.2983528]
[1729594815584,0.19607348,67209.0,67208.0,0.2000528]
[1729594815803,0.28490147,67209.0,67208.0,0.1850528]
[1729594816266,0.148789,67209.0,67208.0,0.1850528]
[1729594816711,0.28490147,67209.0,67208.0,0.1710528]
[1729594816923,0.28531526,67209.0,67208.0,0.1570528]
[1729594817175,0.00041379,67208.0,67207.0,0.01547166]
[1729594817410,0.14920479,67208.0,67207.0,0.01325361]
[1729594817844,0.14920479,67208.0,67207.0,0.001652]
[1729594818323,0.19378582,67208.0,67207.0,0.001652]
[1729594818559,0.19378582,67208.0,67207.0,0.002652]
[1729594819211,0.19578582,67208.0,67207.0,0.002652]
[1729594819425,0.15120479,67208.0,67207.0,0.002652]
[1729594819644,0.14920479,67208.0,67207.0,0.002652]
[1729594819856,0.14920479,67208.0,67207.0,0.001652]
[1729594820067,0.15120479,67208.0,67207.0,0.001652]
[1729594822599,0.62989862,67208.0,67207.0,0.001652]
[1729594822843,0.72748611,67208.0,67207.0,0.001652]
[1729594823080,0.83895504,67208.0,67207.0,0.001652]
[1729594823300,0.83884116,67208.0,67207.0,0.001652]
[1729594824284,0.72748611,67208.0,67207.0,0.001652]
[1729594824530,0.73452301,67208.0,67207.0,0.001652]
[1729594824765,0.73452301,67208.0,67203.0,0.001652]
[1729594824766,0.69953873,67204.0,67203.0,0.001652]
[1729594825022,0.86390702,67204.0,67203.0,0.001652]
[1729594825293,0.76630788,67204.0,67203.0,0.001652]
[1729594826187,0.76630788,67204.0,67203.0,0.004652]
[1729594826409,0.69953873,67204.0,67203.0,0.004652]
[1729594827280,0.74402358,67204.0,67203.0,0.004652]
[1729594827733,0.74502358,67204.0,67203.0,0.005652]
[1729594828012,0.74402358,67204.0,67203.0,0.004652]
[1729594828247,0.69953873,67204.0,67203.0,0.004652]
[1729594828695,0.69953873,67204.0,67203.0,0.001652]
[1729594829142,0.70053873,67204.0,67203.0,0.001652]
[1729594829374,0.70153873,67204.0,67203.0,0.002652]
[1729594829595,0.69953873,67204.0,67203.0,0.001652]
[1729594829826,0.70053873,67204.0,67203.0,0.002652]
[1729594830058,0.70153873,67204.0,67203.0,0.002652]
[1729594830559,0.70053873,67204.0,67203.0,0.002652]
[1729594830781,0.69953873,67204.0,67203.0,0.001652]
[1729594831004,0.70053873,67204.0,67203.0,0.002652]
[1729594831881,0.70153873,67204.0,67203.0,0.002652]
[1729594832317,0.69953873,67204.0,67203.0,0.001652]
[1729594832543,0.56342626,67204.0,67203.0,0.001652]
[1729594832758,0.56442626,67204.0,67203.0,0.002652]
[1729594833220,0.25121379,67204.0,67203.0,0.00487005]
[1729594833710,0.2508,67204.0,67203.0,0.00487005]
[1729594833941,0.1498,67204.0,67203.0,0.00387005]
[1729594834422,0.1498,67204.0,67203.0,0.1528292]
[1729594834423,0.1508,67204.0,67203.0,0.1528292]
[1729594834874,0.1498,67204.0,67203.0,0.1677665]
[1729594835300,0.1508,67204.0,67203.0,0.1677665]
[1729594835514,0.1498,67204.0,67203.0,0.1677665]
[1729594835746,0.1488,67204.0,67203.0,0.1677665]
[1729594835958,0.1488,67204.0,67203.0,0.1897665]
[1729594836591,0.1488,67204.0,67203.0,0.1677665]
[1729594836812,0.1488,67204.0,67203.0,0.1797665]
[1729594837024,0.1488,67204.0,67203.0,0.1897665]
[1729594838116,0.1488,67204.0,67203.0,0.1838909]
[1729594838342,0.1488,67204.0,67203.0,0.1897665]
[1729594841420,0.1488,67204.0,67203.0,0.18746958]
[1729594845072,0.1488,67204.0,67203.0,0.22423654]
[1729594845540,0.1488,67204.0,67203.0,0.18746958]
[1729594849888,0.000826,67207.0,67206.0,0.18869365]
[1729594850143,0.000826,67207.0,67206.0,0.63324848]
[1729594850351,0.000826,67207.0,67206.0,0.65827295]
[1729594850567,0.000826,67207.0,67206.0,0.79148564]
[1729594851029,0.000826,67207.0,67206.0,0.80548564]
[1729594851476,0.000826,67207.0,67206.0,0.79148564]
[1729594851912,0.000826,67207.0,67206.0,0.80548564]
[1729594852562,0.000826,67207.0,67206.0,0.81948564]
[1729594853208,0.000826,67207.0,67206.0,0.79148564]
[1729594853701,0.000826,67207.0,67206.0,0.80548564]
[1729594853909,0.000826,67207.0,67206.0,0.81948564]
[1729594854118,0.000826,67207.0,67206.0,0.82048564]
[1729594854344,0.000826,67207.0,67206.0,0.81948564]
[1729594855507,0.000826,67207.0,67206.0,0.82048564]
[1729594855723,0.000826,67207.0,67206.0,0.81980449]
[1729594856414,0.000826,67207.0,67206.0,0.80580449]
[1729594856632,0.000826,67207.0,67206.0,0.81980449]
[1729594857053,0.000826,67207.0,67206.0,0.80580449]
[1729594857282,0.000826,67207.0,67206.0,0.79180449]
[1729594857513,0.000826,67207.0,67206.0,0.80580449]
[1729594857725,0.000826,67207.0,67206.0,0.81980449]
[1729594863078,0.000826,67207.0,67206.0,0.81914347]
[1729594864561,0.000826,67207.0,67206.0,0.80514347]
[1729594864795,0.000826,67207.0,67206.0,0.79091927]
[1729594865037,0.000826,67207.0,67206.0,0.80491927]
[1729594865267,0.000826,67207.0,67206.0,0.81950548]
[1729594866734,0.000826,67207.0,67206.0,0.96546004]
[1729594866977,0.000826,67220.0,67219.0,0.10582728]
[1729594867213,0.000826,67220.0,67219.0,0.6458407]
[1729594867446,0.000826,67220.0,67219.0,0.65060189]
[1729594867953,0.000826,67220.0,67219.0,0.6521881]
[1729594868203,0.000826,67220.0,67219.0,0.6661881]
[1729594868436,0.000826,67220.0,67219.0,0.79331591]
[1729594868657,0.000826,67220.0,67219.0,0.7917297]
[1729594868901,0.00104182,67220.0,67219.0,0.79331591]
[1729594870071,0.00104182,67220.0,67219.0,0.79239197]
[1729594870784,0.00104182,67220.0,67219.0,0.80639197]
[1729594871506,0.00104182,67220.0,67219.0,0.6702795]
[1729594871736,0.00104182,67220.0,67219.0,0.80639197]
[1729594872923,0.00104182,67220.0,67219.0,0.91639197]
[1729594873870,0.00104182,67220.0,67219.0,0.90239197]
[1729594874103,0.00104182,67220.0,67219.0,0.88839197]
[1729594874329,0.00104182,67220.0,67219.0,0.90239197]
[1729594874781,0.00104182,67220.0,67219.0,0.91639197]
[1729594875231,0.00104182,67220.0,67219.0,0.90239197]
[1729594875697,0.00104182,67220.0,67219.0,0.91639197]
[1729594876449,0.00104182,67220.0,67219.0,1.05250444]
[1729594876670,0.00104182,67220.0,67219.0,0.91639197]
[1729594877157,0.00104182,67220.0,67219.0,0.96228964]
[1729594877853,0.00104182,67220.0,67219.0,0.91480576]
[1729594878096,0.00104182,67220.0,67219.0,0.91639197]
[1729594878567,0.00104182,67220.0,67219.0,0.96229814]
[1729594880174,0.00104182,67220.0,67219.0,0.93429814]
[1729594880420,0.00104182,67220.0,67219.0,0.94829814]
[1729594880933,0.00104182,67220.0,67219.0,0.93429814]
[1729594881167,0.00104182,67220.0,67219.0,0.96229814]
[1729594883767,0.00104182,67220.0,67219.0,1.66229814]
[1729594884246,0.00104182,67220.0,67219.0,1.66207073]
[1729594889240,0.00104182,67220.0,67219.0,0.96207073]
[1729594889457,0.00104182,67220.0,67219.0,1.02159673]
[1729594890781,0.00104182,67220.0,67219.0,1.02136932]
[1729594891004,0.00104182,67220.0,67219.0,1.02302132]
[1729594892130,0.00104182,67220.0,67219.0,1.72302132]
[1729594894073,0.00104182,67220.0,67219.0,1.71670737]
[1729594894317,0.00104182,67220.0,67219.0,1.37799483]
[1729594894517,0.00104182,67220.0,67219.0,1.03767409]
[1729594894732,0.00104182,67220.0,67219.0,0.49116883]
[1729594894975,0.00104182,67220.0,67219.0,0.34240183]
[1729594895194,0.00104182,67220.0,67219.0,0.49116883]
[1729594895416,0.00104182,67220.0,67219.0,0.47316883]
[1729594895662,0.00104182,67220.0,67219.0,0.68850616]
[1729594895888,0.00104182,67220.0,67219.0,0.80200616]
[1729594896557,0.00104182,67220.0,67219.0,0.81600616]
[1729594897326,0.00104182,67220.0,67219.0,1.65211863]
[1729594897533,0.00104182,67220.0,67219.0,1.62411863]
[1729594897742,0.00104182,67220.0,67219.0,1.53215687]
[1729594897982,0.00104182,67220.0,67219.0,1.54615687]
[1729594898190,0.00104182,67220.0,67219.0,1.53215687]
[1729594898417,0.00104182,67220.0,67219.0,1.48722981]
[1729594898631,0.00104182,67220.0,67219.0,1.54538052]
[1729594898863,0.00104182,67220.0,67219.0,1.51522981]
[1729594899353,0.00104182,67220.0,67219.0,1.50122981]
[1729594899570,0.00104182,67220.0,67219.0,1.55938052]
[1729594900699,0.00104182,67220.0,67219.0,1.51522981]
[1729594902884,0.00104182,67220.0,67219.0,1.58145588]
[1729594903763,0.00104182,67220.0,67219.0,1.51522981]
[1729594903977,0.00104182,67220.0,67219.0,1.51681602]
[1729594904198,0.00104182,67220.0,67219.0,1.58304209]
[1729594904660,0.00104182,67220.0,67219.0,1.51681602]
[1729594904867,0.00104182,67220.0,67219.0,1.51497823]
[1729594905485,0.00104182,67220.0,67219.0,1.5812043]
[1729594905741,0.00104182,67220.0,67219.0,1.51497823]
[1729594906180,0.00104182,67220.0,67219.0,1.5812043]
[1729594907074,0.00104182,67220.0,67219.0,1.58124877]
[1729594907498,0.00104182,67220.0,67219.0,1.51497823]
[1729594907952,0.00104182,67220.0,67219.0,1.60333895]
[1729594909436,0.00104182,67220.0,67219.0,1.51497823]
[1729594910512,0.00104182,67220.0,67219.0,1.62542913]
[1729594911408,0.00104182,67220.0,67219.0,1.51497823]
[1729594912574,0.00104182,67220.0,67219.0,1.62553986]
[1729594913432,0.00104182,67220.0,67219.0,1.51497823]
[1729594918281,0.00104182,67220.0,67219.0,1.6510907]
[1729594918500,0.00104182,67220.0,67219.0,1.68905411]
[1729594919369,0.00104182,67220.0,67219.0,0.98905411]
[1729594920411,0.00104182,67220.0,67219.0,1.08704599]
[1729594923052,0.00104182,67220.0,67219.0,1.78704599]
[1729594924060,0.00104182,67220.0,67219.0,1.91958707]
[1729594927404,0.00104182,67220.0,67219.0,1.91800086]
[1729594927629,0.00104182,67220.0,67219.0,1.91958707]
[1729594928331,0.00104182,67220.0,67219.0,1.78704599]
[1729594929218,0.000826,67241.0,67240.0,0.15886852]
[1729594929445,0.000826,67241.0,67240.0,0.35373384]
[1729594929685,0.000826,67241.0,67240.0,0.36091928]
[1729594931748,0.000826,67241.0,67240.0,0.37491928]
[1729594931972,0.000826,67241.0,67240.0,0.38891928]
[1729594932202,0.000826,67241.0,67240.0,0.4711602]
[1729594933575,0.000826,67241.0,67240.0,0.32199161]
[1729594934502,0.000826,67241.0,67240.0,0.23975069]
[1729594935198,0.000826,67241.0,67240.0,0.19384452]
[1729594935846,0.149544,67241.0,67240.0,0.19384452]
[1729594936065,0.149544,67241.0,67240.0,0.18956537]
[1729594936066,0.46057788,67241.0,67240.0,0.18956537]
[1729594936511,0.46057788,67241.0,67240.0,0.18237993]
[1729594936512,0.324544,67241.0,67240.0,0.18237993]
[1729594937626,0.324544,67241.0,67240.0,0.18955845]
[1729594939367,0.324544,67241.0,67240.0,1.18955845]
[1729594940959,0.324544,67241.0,67240.0,1.18855377]
[1729594941159,0.46057788,67241.0,67240.0,1.18413767]
[1729594941572,0.46057788,67241.0,67240.0,1.03517852]
[1729594941573,0.59733261,67241.0,67240.0,1.03517852]
[1729594942050,0.59733261,67241.0,67240.0,1.02117852]
[1729594942051,0.46171252,67241.0,67240.0,1.02117852]
[1729594942265,0.42428454,67241.0,67240.0,0.71616161]
[1729594942471,0.19231678,67241.0,67240.0,0.72616161]
[1729594942750,0.36652222,67241.0,67240.0,0.73416161]
[1729594942952,0.36652222,67241.0,67240.0,0.72416161]
[1729594943698,0.36652222,67241.0,67240.0,0.71616161]
[1729594944328,0.3284324,67241.0,67240.0,0.71616161]
[1729594944541,0.46454802,67241.0,67240.0,0.71616161]
[1729594944948,0.46454802,67241.0,67240.0,0.71916161]
[1729594945061,0.3284324,67241.0,67240.0,0.71916161]
[1729594945273,0.3284324,67241.0,67240.0,0.71616161]
[1729594945678,0.3304324,67241.0,67240.0,0.71716161]
[1729594946366,0.39726902,67241.0,67240.0,0.71716161]
[1729594948146,0.53338464,67241.0,67240.0,0.71716161]
[1729594948365,0.53338464,67241.0,67240.0,0.71881161]
[1729594949247,0.53338464,67241.0,67240.0,0.71858751]
[1729594950804,0.2611534,67241.0,67240.0,0.71858751]
[1729594951017,0.53338464,67241.0,67240.0,0.71858751]
[1729594951226,0.46654802,67241.0,67240.0,0.71858751]
[1729594951445,0.3304324,67241.0,67240.0,0.71858751]
[1729594952521,0.56654802,67241.0,67240.0,0.71858751]
[1729594953184,0.56654802,67241.0,67240.0,0.71845051]
[1729594956253,0.73078636,67241.0,67240.0,0.71845051]
[1729594956472,0.81977052,67241.0,67240.0,0.71845051]
[1729594956680,0.63327849,67241.0,67240.0,0.68885351]
[1729594959575,0.56654802,67241.0,67240.0,0.68885351]
[1729594961572,0.2903324,67241.0,67240.0,0.68885351]
[1729594961792,0.2903324,67241.0,67240.0,0.68167042]
[1729594962281,0.2903324,67241.0,67240.0,0.68976085]
[1729594962969,0.3903324,67241.0,67240.0,0.68976085]
[1729594964313,0.25421678,67241.0,67240.0,0.68976085]
[1729594964553,0.25267864,67241.0,67240.0,0.68976085]
[1729594964782,0.3903324,67241.0,67240.0,0.68976085]
[1729594965458,0.25195779,67241.0,67240.0,0.83872]
[1729594965679,0.15195779,67241.0,67240.0,0.83872]
[1729594966462,0.15195779,67241.0,67240.0,0.93322]
[1729594966676,0.14995779,67241.0,67240.0,0.93322]
[1729594966892,0.149544,67241.0,67240.0,1.01022]
[1729594967116,0.149544,67241.0,67240.0,1.01522]
[1729594967346,0.149544,67241.0,67240.0,1.01722]
[1729594967796,0.149544,67241.0,67240.0,1.01919548]
[1729594968023,0.149544,67241.0,67240.0,1.06490843]
[1729594968528,0.149544,67241.0,67240.0,1.07595725]
[1729594970130,0.149544,67241.0,67240.0,1.0422443]
[1729594970353,0.14995779,67241.0,67240.0,1.0422443]
[1729594970988,0.149544,67241.0,67240.0,1.0422443]
[1729594972296,0.14995779,67241.0,67240.0,1.0422443]
[1729594972969,0.149544,67241.0,67240.0,1.0422443]
[1729594974886,0.149544,67241.0,67240.0,1.04125014]
[1729594975363,0.14995779,67241.0,67240.0,1.04125014]
[1729594975605,0.149544,67241.0,67240.0,1.04125014]
[1729594977249,0.149544,67241.0,67240.0,1.03020132]
[1729594977502,0.149544,67241.0,67240.0,1.04124692]
[1729594980841,0.14995779,67241.0,67240.0,1.04124822]
[1729594981586,0.149544,67241.0,67240.0,1.04124822]
[1729594983449,0.149544,67241.0,67240.0,1.04124458]
[1729594987115,0.149544,67241.0,67240.0,1.04124653]
[1729594989433,0.149544,67241.0,67240.0,1.0402002]
[1729594990837,0.149544,67241.0,67240.0,1.02915499]
[1729594991071,0.149544,67241.0,67240.0,1.04021212]
[1729594991785,0.149544,67241.0,67240.0,1.04462822]
[1729594992037,0.149544,67241.0,67240.0,1.07278579]
[1729594992280,0.149544,67241.0,67240.0,1.07279098]
[1729594992743,0.149544,67241.0,67240.0,1.06079098]
[1729594992985,0.149544,67241.0,67240.0,1.05079098]
[1729594993213,0.149544,67241.0,67240.0,1.03663341]
[1729594993462,0.149544,67241.0,67240.0,1.04963341]
[1729594993700,0.149544,67241.0,67240.0,1.03563341]
[1729594993926,0.149544,67241.0,67240.0,1.04963341]
[1729594994640,0.000826,67241.0,67240.0,1.05391256]
[1729594994885,0.000826,67241.0,67240.0,1.14096716]
[1729594995124,0.000826,67241.0,67240.0,1.20263256]
[1729594995374,0.000826,67241.0,67240.0,1.44407762]
[1729594995614,0.000826,67241.0,67240.0,1.49013019]
[1729594995855,0.000826,67241.0,67240.0,1.10974336]
[1729594996106,0.000826,67241.0,67240.0,1.09574336]
[1729594996107,0.149544,67241.0,67240.0,1.09574336]
[1729594996342,0.000826,67241.0,67240.0,1.02669079]
[1729594996575,0.149544,67241.0,67240.0,1.06469079]
[1729594996873,0.000826,67241.0,67240.0,1.06469079]
[1729594997112,0.149544,67241.0,67240.0,1.06469079]
[1729594997349,0.000826,67241.0,67240.0,1.05069079]
[1729594997585,0.000826,67241.0,67240.0,1.03641164]
[1729594997586,0.149544,67241.0,67240.0,1.03641164]
[1729594997840,0.149544,67241.0,67240.0,1.02241164]
[1729594998068,0.149544,67241.0,67240.0,1.01134932]
[1729594998783,0.149544,67241.0,67240.0,1.02534932]
[1729594999485,0.149544,67241.0,67240.0,1.03934932]
[1729594999706,0.149544,67241.0,67240.0,1.02534932]
[1729594999920,0.149544,67241.0,67240.0,1.03934932]
[1729595002436,0.000826,67241.0,67240.0,1.03934932]
[1729595002645,0.149544,67241.0,67240.0,1.03912755]
[1729595002862,0.149544,67241.0,67240.0,1.03471145]
[1729595003074,0.149544,67241.0,67240.0,1.03912755]
[1729595009622,0.149544,67241.0,67240.0,1.03826974]
[1729595020241,0.000826,67241.0,67240.0,1.03826974]
[1729595020473,0.149544,67241.0,67240.0,1.03826974]
[1729595021370,0.000826,67241.0,67240.0,1.03826974]
[1729595021592,0.149544,67241.0,67240.0,1.03826974]
[1729595022937,0.149365,67241.0,67240.0,1.03826974]
[1729595029973,0.14977879,67241.0,67240.0,1.03826974]
[1729595030587,0.149365,67241.0,67240.0,1.03826974]
[1729595030797,0.149365,67241.0,67240.0,1.03017931]
[1729595031268,0.14977879,67241.0,67240.0,1.03840816]
[1729595031785,0.149365,67241.0,67240.0,1.03840816]
[1729595034274,0.149365,67241.0,67240.0,0.85767931]
[1729595034275,0.2364196,67241.0,67240.0,0.85767931]
[1729595034497,0.149365,67241.0,67240.0,0.85767931]
[1729595034749,0.149365,67241.0,67240.0,0.86593196]
[1729595035265,0.14977879,67241.0,67240.0,0.86593196]
[1729595036616,0.15049964,67241.0,67240.0,0.86593196]
[1729595036843,0.15049964,67241.0,67240.0,0.86570798]
[1729595037743,0.15049964,67241.0,67240.0,0.86557001]
[1729595040828,0.195106,67241.0,67240.0,0.86557001]
[1729595041529,0.19511017,67241.0,67240.0,0.86557001]
[1729595041768,0.15049964,67241.0,67240.0,0.86557001]
[1729595042483,0.14549964,67241.0,67240.0,0.86557001]
[1729595042695,0.21240919,67241.0,67240.0,0.86557001]
[1729595043021,0.21240919,67241.0,67240.0,0.71219476]
[1729595043022,0.23255424,67241.0,67240.0,0.71219476]
[1729595043243,0.60876962,67241.0,67240.0,0.71219476]
[1729595043681,0.60876962,67241.0,67240.0,0.70394211]
[1729595043913,0.49723837,67241.0,67240.0,0.70394211]
[1729595044120,0.49723837,67241.0,67240.0,0.71223756]
[1729595044343,0.6087441,67241.0,67240.0,0.71223756]
[1729595044559,0.6087441,67241.0,67240.0,0.69823756]
[1729595044777,0.49723837,67241.0,67240.0,0.68823756]
[1729595044999,0.49723837,67241.0,67240.0,0.68801206]
[1729595045225,0.60874704,67241.0,67240.0,0.69101206]
[1729595045511,0.60874704,67241.0,67240.0,0.69201206]
[1729595045683,0.49723837,67241.0,67240.0,0.68501206]
[1729595046121,0.49723837,67241.0,67240.0,0.68901206]
[1729595046622,0.41018377,67241.0,67240.0,0.68901206]
[1729595048213,0.52162827,67241.0,67240.0,0.68901206]
[1729595048451,0.41018377,67241.0,67240.0,0.68901206]
[1729595048670,0.49932928,67241.0,67240.0,0.68901206]
[1729595049348,0.41003068,67241.0,67240.0,0.68901206]
[1729595049564,0.49917619,67241.0,67240.0,0.68901206]
[1729595050015,0.31235207,67241.0,67240.0,0.68901206]
[1729595050468,0.31235207,67241.0,67240.0,0.68071661]
[1729595050761,0.31317807,67241.0,67240.0,0.68071661]
[1729595050994,0.40023267,67241.0,67240.0,0.68902507]
[1729595051445,0.33338024,67241.0,67240.0,0.68902507]
[1729595051677,0.40023267,67241.0,67240.0,0.68902507]
[1729595051900,0.24632564,67241.0,67240.0,0.68902507]
[1729595052122,0.33338024,67241.0,67240.0,0.68902507]
[1729595052779,0.40022475,67241.0,67240.0,0.68902507]
[1729595053231,0.37794252,67241.0,67240.0,0.68902507]
[1729595053682,0.33338024,67241.0,67240.0,0.68902507]
[1729595053897,0.37794252,67241.0,67240.0,0.68902507]
[1729595054124,0.40022475,67241.0,67240.0,0.68902507]
[1729595054365,0.48727935,67241.0,67240.0,0.68902507]
[1729595054829,0.67405493,67241.0,67240.0,0.68902507]
[1729595055520,0.69633644,67241.0,67240.0,0.68902507]
[1729595055762,0.58492892,67241.0,67240.0,0.68902507]
[1729595056210,0.58492892,67241.0,67240.0,0.68071661]
[1729595056672,0.58492892,67241.0,67240.0,0.68903302]
[1729595057365,0.42043484,67241.0,67240.0,0.68903302]
[1729595057590,0.58490197,67241.0,67240.0,0.68903302]
[1729595058497,0.67695657,67241.0,67240.0,0.68903302]
[1729595058718,0.67695657,67241.0,67240.0,0.19814444]
[1729595058719,0.77258567,67241.0,67240.0,0.19814444]
[1729595058949,0.74659471,67241.0,67240.0,0.02817497]
[1729595059175,0.74659471,67241.0,67240.0,0.02917497]
[1729595059400,0.00113464,67232.0,67231.0,0.22393909]
[1729595059625,0.40373032,67232.0,67231.0,0.22393909]